bitfinex/quotes_ETHUSD_20240718
["timestamp","ask_amount","ask_price","bid_price","bid_amount"]
[1721298328221,17.1231,3446.2,3446.1,0.0445856]
[1721298328418,17.1231,3446.2,3446.1,5.6e-06]
[1721298328419,27.02041,3446.2,3446.1,5.6e-06]
[1721298328638,8.70903,3444.7,3444.6,2.3119]
[1721298328838,9.53403,3444.7,3444.6,2.3119]
[1721298329062,12.53403,3444.7,3444.6,2.3119]
[1721298329240,11.70903,3444.7,3444.6,2.3119]
[1721298329439,12.53403,3444.7,3444.6,2.3119]
[1721298330276,2.90354,3444.1,3443.5,2.3942]
[1721298330432,2.90354,3444.1,3443.7,2.3942]
[1721298332936,7.36,3444.5,3443.9,2.3769]
[1721298333168,7.36,3444.5,3444.0,2.9269]
[1721298333475,7.36,3444.5,3444.2,2.3769]
[1721298333776,2.90294,3444.8,3444.2,2.3769]
[1721298333976,7.36,3445.0,3444.3,0.61829025]
[1721298334180,7.36,3445.0,3444.4,2.46]
[1721298334472,7.36,3445.0,3444.3,0.61829025]
[1721298334473,7.36,3445.0,3444.6,2.4248]
[1721298334675,7.36,3445.4,3444.9,2.90277]
[1721298334860,2.93,3445.5,3445.1,2.4248]
[1721298337281,5.83234,3445.5,3445.1,2.4248]
[1721298337854,2.90248,3445.4,3445.1,2.4248]
[1721298338965,5.83234,3445.5,3445.1,2.4248]
[1721298338966,2.90252,3445.3,3445.1,2.4248]
[1721298339172,3.20374983,3445.3,3445.1,2.4248]
[1721298339366,3.20374983,3445.3,3445.1,2.66728]
[1721298339983,2.90258,3445.2,3445.1,2.66728]
[1721298341555,2.90258,3445.2,3445.1,2.4248]
[1721298342547,2.90269,3445.1,3444.4,2.3346]
[1721298342773,2.90269,3445.1,3444.5,0.55]
[1721298343283,3.20374983,3445.3,3444.4,2.3346]
[1721298343284,0.30122983,3445.3,3444.4,2.3346]
[1721298343644,2.90295,3444.8,3444.4,2.3346]
[1721298343844,2.90317,3444.5,3444.4,2.3346]
[1721298345578,0.2904,3445.2,3444.4,2.3346]
[1721298345579,2.90288,3444.9,3444.4,2.3346]
[1721298345944,2.9027,3445.1,3444.4,2.3346]
[1721298346146,2.9027,3445.1,3444.5,0.523797]
[1721298347765,2.90275,3445.0,3444.4,2.3346]
[1721298348064,2.90284,3444.9,3444.5,0.55]
[1721298348260,2.90284,3444.9,3444.4,2.3346]
[1721298348899,2.90303,3444.7,3444.4,2.3346]
[1721298349179,2.90317,3444.5,3444.4,2.3346]
[1721298349582,2.90329,3444.4,3443.7,5.39924]
[1721298350967,2.90329,3444.4,3443.8,0.55]
[1721298353513,3.20439112,3444.6,3443.8,0.55]
[1721298354014,2.90385,3443.7,3443.6,0.0844329]
[1721298355274,2.90376,3443.9,3443.6,0.0844329]
[1721298355477,2.90363,3444.0,3443.6,0.0844329]
[1721298356006,2.90377,3443.8,3443.6,0.0844329]
[1721298356205,2.90351,3444.1,3443.6,2.3908329]
[1721298356707,2.90343,3444.2,3443.6,2.3908329]
[1721298356909,7.36,3444.3,3443.7,0.55]
[1721298357209,7.36,3444.7,3443.8,0.05806585]
[1721298357408,7.36,3444.7,3443.7,0.55]
[1721298357409,7.36,3444.7,3444.1,2.90351]
[1721298357608,7.36,3444.7,3444.2,3.06876014]
[1721298358169,7.36,3444.7,3444.2,5.91404]
[1721298358392,7.36,3444.7,3444.3,0.591404]
[1721298358707,7.36,3444.7,3444.4,3.45326]
[1721298358913,7.36,3444.7,3444.5,2.90317]
[1721298359080,2.93,3444.8,3444.5,3.45317]
[1721298361003,10.26258,3445.2,3444.5,3.45317]
[1721298361212,10.26258,3445.2,3444.5,0.55]
[1721298361367,10.26258,3445.2,3444.4,3.45324]
[1721298362398,2.9027,3445.1,3444.4,1.10671125]
[1721298362706,2.90276,3445.0,3444.4,0.55]
[1721298365033,2.90276,3445.0,3444.4,3.45326]
[1721298365438,10.26258,3445.2,3443.7,0.60680235]
[1721298365439,2.90348,3444.2,3443.7,0.60680235]
[1721298365642,2.90348,3444.2,3443.6,0.0844329]
[1721298365937,2.90352,3444.1,3443.6,0.0844329]
[1721298366235,3.20437925,3444.1,3443.6,0.0844329]
[1721298366743,2.9037,3443.9,3443.6,0.0844329]
[1721298368327,2.90378,3443.8,3443.6,0.0844329]
[1721298368841,2.90385,3443.7,3443.6,0.0844329]
[1721298369508,5.8077,3443.7,3443.6,0.0844329]
[1721298369725,6.38847,3443.7,3443.6,0.0844329]
[1721298370513,2.90385,3443.7,3443.6,0.0844329]
[1721298371903,5.8077,3443.7,3443.6,0.0844329]
[1721298374856,2.9037,3443.9,3443.6,0.0844329]
[1721298377159,3.20436925,3444.1,3443.6,0.0844329]
[1721298379446,0.30085925,3444.1,3443.6,0.0844329]
[1721298381535,0.30085925,3444.1,3443.6,2.9883429]
[1721298381832,0.30085925,3444.1,3443.6,3.81897719]
[1721298382075,0.30085925,3444.1,3443.9,2.90366]
[1721298383247,0.30085925,3444.1,3443.6,0.0844329]
[1721298383552,0.30085925,3444.1,3443.6,2.9883229]
[1721298388863,0.30085925,3444.1,3443.7,2.90384]
[1721298389072,0.30085925,3444.1,3443.7,3.73445629]
[1721298390883,0.30085925,3444.1,3443.8,3.45374]
[1721298391214,0.30085925,3444.1,3443.9,2.90367]
[1721298391641,0.30085925,3444.1,3444.0,2.9036]
[1721298391848,0.30085925,3444.1,3444.0,8.6267]
[1721298392050,7.36,3444.6,3444.5,2.90317]
[1721298392245,0.3004469,3444.6,3444.5,5.80629]
[1721298392673,0.3004469,3444.6,3444.5,6.35629]
[1721298395385,0.3004469,3444.6,3444.5,3.45312]
[1721298395883,0.3004469,3444.6,3444.3,2.90329]
[1721298396049,0.3004469,3444.6,3444.1,2.90348]
[1721298396263,0.3004469,3444.6,3444.2,2.9034]
[1721298396800,0.3004469,3444.6,3444.1,2.90344]
[1721298397164,0.3004469,3444.6,3444.2,2.90342]
[1721298397600,0.3004469,3444.6,3444.3,2.90334]
[1721298398816,0.3004469,3444.6,3444.3,2.90329]
[1721298398968,0.3004469,3444.6,3444.4,2.90325]
[1721298399770,0.3004469,3444.6,3444.5,2.90317]
[1721298399968,0.3004469,3444.6,3444.5,6.35634]
[1721298403608,0.3004469,3444.6,3444.5,3.45317]
[1721298406624,0.3004469,3444.6,3444.5,6.35634]
[1721298408915,0.3004469,3444.6,3444.5,3.45317]
[1721298409330,0.3004469,3444.6,3444.5,0.55]
[1721298409621,0.3004469,3444.6,3444.4,0.55]
[1721298410410,0.3004469,3444.6,3444.2,3.45339]
[1721298411130,0.3004469,3444.6,3444.2,0.55]
[1721298411690,2.90319,3444.5,3444.0,1.984]
[1721298412342,0.3004469,3444.6,3444.1,2.90347]
[1721298412695,0.3004469,3444.6,3444.1,5.80692]
[1721298412895,0.3004469,3444.6,3444.1,2.90345]
[1721298413332,0.3004469,3444.6,3444.2,0.55]
[1721298414993,0.3004469,3444.6,3444.1,0.55]
[1721298416898,0.3004469,3444.6,3444.1,3.45351]
[1721298420666,0.3004469,3444.6,3444.2,0.07057578]
[1721298421168,0.3004469,3444.6,3444.2,2.97399578]
[1721298421566,0.3004469,3444.6,3444.2,0.07057578]
[1721298421763,0.3004469,3444.6,3444.3,0.55]
[1721298421967,0.3004469,3444.6,3444.3,0.95740858]
[1721298422167,0.3004469,3444.6,3444.3,3.86073858]
[1721298422570,0.3004469,3444.6,3444.5,5.80634]
[1721298422771,9.8319,3445.8,3444.9,2.9028]
[1721298422943,9.8319,3445.8,3445.2,2.90253]
[1721298422944,7.36,3445.8,3445.2,2.90253]
[1721298423130,0.30046365,3445.4,3445.3,3.4525]
[1721298427246,0.30046365,3445.4,3445.3,4.19320667]
[1721298431112,0.30046365,3445.4,3445.3,7.09570667]
[1721298434527,0.30046365,3445.4,3445.3,4.19320667]
[1721298442143,2.90257,3445.3,3444.4,3.34670353]
[1721298442426,2.90286,3444.9,3444.2,2.97399578]
[1721298442786,2.90286,3444.9,3444.2,2.97394578]
[1721298442986,0.30036466,3444.8,3444.3,0.73944458]
[1721298443393,3.20328466,3444.8,3444.2,0.07057578]
[1721298443602,2.90311,3444.6,3444.2,0.07057578]
[1721298447104,3.20328466,3444.8,3444.2,0.07057578]
[1721298447307,2.90301,3444.7,3444.2,0.07057578]
[1721298448607,0.30036466,3444.8,3444.2,0.07057578]
[1721298448806,0.30036466,3444.8,3444.5,2.90316]
[1721298453402,0.30036466,3444.8,3444.2,0.07057578]
[1721298453736,3.20334466,3444.8,3444.2,0.07057578]
[1721298457008,3.20334466,3444.8,3444.2,2.97398578]
[1721298462545,2.90306,3444.7,3444.2,0.07057578]
[1721298462911,2.9031,3444.6,3444.2,0.07057578]
[1721298466468,2.9031,3444.6,3444.3,0.826]
[1721298472829,2.9031,3444.6,3444.3,0.826]
[1721298475478,2.4869,3444.5,3444.2,0.07057578]
[1721298475769,5.80668,3444.3,3444.2,0.07057578]
[1721298475967,6.636038,3444.3,3444.2,0.07057578]
[1721298477234,3.732698,3444.3,3444.2,0.07057578]
[1721298477842,2.90334,3444.3,3444.2,0.07057578]
[1721298492306,0.30331702,3444.4,3444.2,0.07057578]
[1721298492512,3.20657702,3444.4,3444.2,0.07057578]
[1721298493679,6.10989702,3444.4,3444.2,0.07057578]
[1721298494119,3.20657702,3444.4,3444.2,0.07057578]
[1721298494329,6.10990702,3444.4,3444.2,0.07057578]
[1721298494831,3.20657702,3444.4,3444.2,0.07057578]
[1721298495634,6.10989702,3444.4,3444.2,0.07057578]
[1721298496123,2.90334,3444.3,3444.2,0.07057578]
[1721298497715,5.80668,3444.3,3444.2,0.07057578]
[1721298506454,8.71002,3444.3,3444.2,0.07057578]
[1721298506664,18.39919484,3444.3,3444.2,0.07057578]
[1721298506816,18.39918774,3444.3,3444.2,0.07057578]
[1721298507022,21.31655336,3444.3,3444.2,0.07057578]
[1721298507262,23.13079856,3444.3,3444.2,0.07057578]
[1721298508529,21.31655336,3444.3,3444.2,0.07057578]
[1721298508861,20.49055336,3444.3,3444.2,0.07057578]
[1721298509072,17.01528562,3444.3,3444.2,0.07057578]
[1721298509297,17.84128562,3444.3,3444.2,0.07057578]
[1721298509655,17.01528562,3444.3,3444.2,0.07057578]
[1721298515573,17.84128562,3444.3,3444.2,0.07057578]
[1721298516388,20.74462562,3444.3,3444.2,0.07057578]
[1721298516505,21.31689155,3444.3,3444.2,0.07057578]
[1721298517307,21.60749155,3444.3,3444.2,0.07057578]
[1721298517540,23.11256562,3444.3,3444.2,5.78e-06]
[1721298517814,26.32347994,3444.3,3444.2,5.78e-06]
[1721298519421,25.75096321,3444.3,3444.2,5.78e-06]
[1721298519606,26.32326052,3444.3,3444.2,5.78e-06]
[1721298522618,26.32200515,3444.3,3444.2,5.78e-06]
[1721298523019,26.32162319,3444.3,3444.2,5.78e-06]
[1721298523437,43.07599019,3444.3,3444.2,5.78e-06]
[1721298523637,42.47064363,3444.3,3444.2,5.78e-06]
[1721298523842,38.02064363,3444.3,3444.2,5.78e-06]
[1721298524439,36.21002863,3444.3,3444.2,5.78e-06]
[1721298524777,38.02036049,3444.3,3444.2,5.78e-06]
[1721298525832,35.63788862,3444.3,3444.2,5.78e-06]
[1721298526042,38.02008502,3444.3,3444.2,5.78e-06]
[1721298526763,36.91562693,3444.3,3444.2,5.78e-06]
[1721298528864,37.46562693,3444.3,3444.2,5.78e-06]
[1721298529070,36.89349736,3444.3,3444.2,5.78e-06]
[1721298529373,37.46566725,3444.3,3444.2,5.78e-06]
[1721298531337,17.16915,3443.7,3443.6,8.68e-06]
[1721298531541,34.14876489,3443.7,3443.6,8.68e-06]
[1721298531742,34.88731989,3443.7,3443.6,8.68e-06]
[1721298532036,28.52918121,3443.7,3443.6,8.68e-06]
[1721298532251,29.35518121,3443.7,3443.6,8.68e-06]
[1721298533477,32.27254683,3443.7,3443.6,8.68e-06]
[1721298534662,34.67754683,3443.7,3443.6,8.68e-06]
[1721298535286,37.90770949,3443.7,3443.6,8.68e-06]
[1721298536722,46.77132049,3443.7,3443.6,8.68e-06]
[1721298537691,46.47177949,3443.7,3443.6,8.68e-06]
[1721298537895,42.64855183,3443.7,3443.6,8.68e-06]
[1721298538272,42.19855183,3443.7,3443.6,8.68e-06]
[1721298540720,42.77002922,3443.7,3443.6,8.68e-06]
[1721298541067,43.0963362,3443.7,3443.6,8.68e-06]
[1721298541274,17.07715,3443.3,3443.2,9.68e-06]
[1721298541504,20.90315,3443.3,3443.2,9.68e-06]
[1721298541809,14.90736,3443.3,3443.2,9.68e-06]
[1721298542008,15.73336,3443.3,3443.2,9.68e-06]
[1721298542492,16.03651615,3443.3,3443.2,9.68e-06]
[1721298542806,17.19135977,3443.3,3443.2,9.68e-06]
[1721298549125,20.09554977,3443.3,3443.2,9.68e-06]
[1721298549442,20.42186243,3443.3,3443.2,9.68e-06]
[1721298549780,20.99339653,3443.3,3443.2,9.68e-06]
[1721298550184,20.66708387,3443.3,3443.2,9.68e-06]
[1721298550423,20.09554977,3443.3,3443.2,9.68e-06]
[1721298550918,20.6671237,3443.3,3443.2,9.68e-06]
[1721298551632,20.66711437,3443.3,3443.2,9.68e-06]
[1721298552331,20.99348622,3443.3,3443.2,9.68e-06]
[1721298552790,28.35348622,3443.3,3443.2,9.68e-06]
[1721298552997,27.45554977,3443.3,3443.2,9.68e-06]
[1721298554390,28.02744475,3443.3,3443.2,9.68e-06]
[1721298555330,27.45554977,3443.3,3443.2,9.68e-06]
[1721298555539,28.02746005,3443.3,3443.2,9.68e-06]
[1721298556124,23.72535977,3443.3,3443.2,9.68e-06]
[1721298556633,24.55135977,3443.3,3443.2,9.68e-06]
[1721298558129,20.82116977,3443.3,3443.2,9.68e-06]
[1721298558329,21.64716977,3443.3,3443.2,9.68e-06]
[1721298560516,22.21902446,3443.3,3443.2,9.68e-06]
[1721298560838,25.12321446,3443.3,3443.2,9.68e-06]
[1721298561137,22.21902446,3443.3,3443.2,9.68e-06]
[1721298562145,29.63601635,3443.3,3443.2,9.68e-06]
[1721298562443,27.82622712,3443.3,3443.2,9.68e-06]
[1721298563412,27.25437243,3443.3,3443.2,9.68e-06]
[1721298563604,27.82623917,3443.3,3443.2,9.68e-06]
[1721298563994,24.62353917,3443.3,3443.2,9.68e-06]
[1721298564297,14.33400289,3443.3,3443.2,2.37830968]
[1721298564510,13.76213615,3443.3,3443.2,2.37830968]
[1721298566299,10.85794615,3443.3,3443.2,2.37830968]
[1721298566745,0.30315615,3443.3,3443.2,2.37830968]
[1721298567050,0.30315615,3443.3,3443.2,2.98356893]
[1721298571348,3.20734615,3443.3,3443.2,2.98356893]
[1721298571960,6.11153615,3443.3,3443.2,2.98356893]
[1721298572103,6.11153615,3443.3,3443.2,2.43356893]
[1721298575245,3.20734615,3443.3,3443.2,2.43356893]
[1721298577513,6.11153615,3443.3,3443.2,2.43356893]
[1721298581422,6.11153615,3443.3,3443.2,0.05526893]
[1721298581741,13.03138311,3443.3,3443.2,0.05526893]
[1721298588781,15.93557311,3443.3,3443.2,0.05526893]
[1721298589125,19.00633471,3443.3,3443.2,0.05526893]
[1721298589332,18.43437311,3443.3,3443.2,0.05526893]
[1721298589637,28.68165943,3443.3,3443.2,0.05526893]
[1721298590658,31.58584943,3443.3,3443.2,0.05526893]
[1721298590863,38.94584943,3443.3,3443.2,8.93e-06]
[1721298591063,37.13605819,3443.3,3443.2,8.93e-06]
[1721298591450,37.96205819,3443.3,3443.2,8.93e-06]
[1721298592265,40.07305502,3443.3,3443.2,8.93e-06]
[1721298592676,38.29761381,3443.3,3443.2,8.93e-06]
[1721298594666,40.4072958,3443.3,3443.2,8.93e-06]
[1721298595068,38.29761381,3443.3,3443.2,8.93e-06]
[1721298595272,40.4070624,3443.3,3443.2,8.93e-06]
[1721298595888,40.40697,3443.3,3443.2,8.93e-06]
[1721298596036,40.40697023,3443.3,3443.2,8.93e-06]
[1721298598673,5.81074,3441.9,3441.8,2.2653]
[1721298598884,6.63674,3441.9,3441.8,2.2653]
[1721298599604,6.93971122,3441.9,3441.8,2.2653]
[1721298599873,2.9059,3441.3,3440.8,2.4175]
[1721298600076,2.90614,3441.0,3440.8,2.4175]
[1721298601489,2.90614,3441.0,3440.9,0.55]
[1721298601640,5.90614,3441.0,3440.9,2.8779]
[1721298603076,3.0,3441.0,3440.9,2.8779]
[1721298603461,5.90613,3441.0,3440.9,2.8779]
[1721298603676,3.0,3441.0,3440.9,2.8779]
[1721298603998,2.90613,3441.0,3440.9,2.8779]
[1721298604150,5.90613,3441.0,3440.9,2.8779]
[1721298604348,2.90596,3441.2,3440.9,2.8779]
[1721298604553,2.90581,3441.4,3441.1,2.3024]
[1721298604795,5.90587,3441.3,3441.2,2.8524]
[1721298608468,8.81174,3441.3,3441.2,2.3024]
[1721298609651,9.1140739,3441.3,3441.2,2.3024]
[1721298610411,2.90638,3440.7,3440.1,2.3941]
[1721298610707,2.90638,3440.7,3440.3,2.3941]
[1721298610859,2.90638,3440.7,3440.5,2.3724]
[1721298611065,2.90638,3440.7,3440.6,0.55]
[1721298612611,2.90638,3440.7,3440.6,2.999]
[1721298613166,2.90638,3440.7,3440.6,3.2989]
[1721298615816,5.81252,3440.9,3440.6,3.2989]
[1721298616018,2.90622,3440.9,3440.6,3.2989]
[1721298616397,2.90622,3440.9,3440.6,2.999]
[1721298617325,2.90638,3440.7,3440.6,2.999]
[1721298617983,5.81276,3440.7,3440.6,3.04750684]
[1721298618189,5.81276,3440.7,3440.6,3.04754749]
[1721298619990,6.11564906,3440.7,3440.6,3.04754749]
[1721298620407,3.20926906,3440.7,3440.6,3.04754749]
[1721298620910,0.30288906,3440.7,3440.6,3.35230224]
[1721298621266,0.30288906,3440.7,3440.6,6.25876224]
[1721298621406,7.36,3441.1,3440.7,2.3128]
[1721298621607,7.36,3441.1,3440.6,0.90330224]
[1721298621608,7.36,3441.1,3440.9,2.3128]
[1721298621905,10.26556,3441.7,3441.0,2.91141452]
[1721298622216,2.90532,3442.0,3441.1,2.6260565]
[1721298622440,2.90532,3442.0,3441.3,2.3128]
[1721298622635,10.55605,3442.2,3441.4,2.8628]
[1721298622811,10.26515,3442.2,3441.5,2.3128]
[1721298623148,7.36,3442.2,3441.6,0.55]
[1721298623352,7.36,3442.2,3441.8,2.3128]
[1721298623663,2.90504,3442.3,3441.9,0.55]
[1721298623940,2.90504,3442.3,3441.9,0.59841604]
[1721298624103,2.90497,3442.4,3441.9,0.59841604]
[1721298624517,3.20827615,3442.4,3441.9,0.59841604]
[1721298624748,3.20827615,3442.4,3442.0,0.33166263]
[1721298624905,3.20827615,3442.4,3442.1,0.55]
[1721298625103,0.30330615,3442.4,3442.1,0.55]
[1721298625413,0.30330615,3442.4,3442.3,2.3128]
[1721298625618,0.30330615,3442.4,3442.3,2.91110782]
[1721298625823,0.30330615,3442.4,3442.3,3.29038486]
[1721298627106,7.36,3442.7,3442.3,3.29038486]
[1721298627344,7.36,3442.7,3442.4,3.45494]
[1721298627713,7.36,3442.7,3442.5,0.04815599]
[1721298627946,2.90427,3443.2,3442.7,2.2619]
[1721298628119,2.90427,3443.2,3442.8,0.8360056]
[1721298628492,0.30278309,3443.1,3442.9,0.04813666]
[1721298628770,0.30278309,3443.1,3443.0,0.55]
[1721298628975,0.30278309,3443.1,3442.8,0.8360056]
[1721298629133,3.20713309,3443.1,3443.0,0.04813183]
[1721298629334,3.20713309,3443.1,3443.0,0.55]
[1721298629638,3.20713309,3443.1,3443.0,0.59813183]
[1721298631884,3.20713309,3443.1,3443.0,0.88413501]
[1721298631885,0.30278309,3443.1,3443.0,0.88413501]
[1721298632033,0.30278309,3443.1,3443.0,3.07723183]
[1721298633773,0.30278309,3443.1,3443.0,5.98167183]
[1721298634289,0.30259849,3443.5,3443.3,2.4841]
[1721298634467,0.30259849,3443.5,3443.4,1.088836]
[1721298634786,7.36,3444.1,3443.4,1.13622497]
[1721298635394,10.26351,3444.1,3443.4,1.13622497]
[1721298635597,7.36,3444.1,3443.5,2.4841]
[1721298635738,7.36,3444.1,3443.6,3.45387]
[1721298635947,7.36,3444.1,3443.6,3.5011935]
[1721298636151,7.36,3444.1,3443.7,0.60927925]
[1721298636350,7.36,3444.1,3443.8,0.55]
[1721298636667,7.36,3444.1,3443.8,0.59731384]
[1721298636862,12.43313756,3444.0,3442.7,2.2657]
[1721298637059,2.26967176,3443.9,3442.7,2.2657]
[1721298637259,2.90434,3443.2,3442.8,0.04549456]
[1721298637483,2.90461,3442.8,3442.2,2.3336]
[1721298637698,2.90461,3442.8,3442.2,5.2387]
[1721298638450,2.90449,3443.0,3442.2,5.2387]
[1721298638651,2.90449,3443.0,3442.3,0.52387]
[1721298638955,2.90442,3443.1,3442.3,0.52387]
[1721298639254,7.36,3443.2,3442.4,3.45488]
[1721298639496,7.36,3443.2,3442.4,0.55]
[1721298639795,2.90444,3443.0,3442.4,0.55]
[1721298640096,2.90444,3443.0,3442.4,1.17424525]
[1721298641991,10.26427,3443.2,3442.4,4.07917525]
[1721298642493,2.90438,3443.1,3442.4,4.07917525]
[1721298642802,10.26427,3443.2,3442.5,2.90485]
[1721298642803,7.36,3443.2,3442.5,2.90485]
[1721298642975,7.36,3443.2,3442.6,1.07387]
[1721298643293,7.36,3443.2,3442.6,3.97865]
[1721298644276,7.36,3443.2,3442.7,2.90469]
[1721298644595,7.36,3443.2,3442.8,3.4546]
[1721298644910,7.36,3443.2,3442.9,5.39951]
[1721298645195,5.80776,3443.7,3443.0,1.17424525]
[1721298645196,2.90398,3443.6,3443.0,1.17424525]
[1721298645995,7.36,3443.7,3443.0,1.17424525]
[1721298646493,7.36,3443.7,3443.0,4.07866525]
[1721298646707,2.90372,3443.9,3443.1,2.90429]
[1721298646862,3.0,3443.8,3443.2,0.55]
[1721298647058,3.0,3443.8,3443.3,0.52387]
[1721298647262,7.66313756,3444.0,3443.4,0.55]
[1721298648083,2.90377,3443.8,3443.4,0.55]
[1721298648295,2.90377,3443.8,3443.5,0.04550377]
[1721298648602,2.90393,3443.6,3443.5,0.04550377]
[1721298649664,5.80786,3443.6,3443.5,0.04550377]
[1721298650107,5.80786,3443.6,3442.4,5.29974]
[1721298650108,2.9043,3443.2,3442.4,5.29974]
[1721298650263,2.9043,3443.2,3442.5,2.90485]
[1721298650464,2.9043,3443.2,3442.6,2.90477]
[1721298650659,2.9043,3443.2,3442.7,0.820451]
[1721298650988,2.90441,3443.1,3442.4,5.29968]
[1721298651472,2.90446,3443.0,3442.4,2.3948]
[1721298652323,2.90446,3443.0,3442.5,0.55]
[1721298653026,2.90455,3442.9,3442.5,0.55]
[1721298655378,2.90455,3442.9,3442.5,1.134983]
[1721298657291,2.90422,3443.3,3442.5,4.039813]
[1721298657717,10.26406,3443.5,3442.5,4.039813]
[1721298657718,2.90427,3443.2,3442.5,4.039813]
[1721298657920,10.26406,3443.5,3442.8,2.90459]
[1721298658125,10.26406,3443.5,3442.9,0.55]
[1721298658126,3.0,3443.4,3442.9,0.55]
[1721298659235,10.26406,3443.5,3442.9,0.55]
[1721298659542,7.36,3443.5,3442.9,3.45451]
[1721298659912,3.20716181,3443.6,3442.9,3.45451]
[1721298660135,3.20716181,3443.6,3443.0,0.584983]
[1721298660341,3.20716181,3443.6,3443.1,0.55]
[1721298660643,0.30318181,3443.6,3443.1,0.55]
[1721298662305,0.30318181,3443.6,3443.3,1.11313225]
[1721298662738,0.30318181,3443.6,3443.3,0.55]
[1721298662938,3.20717181,3443.6,3443.1,0.55]
[1721298663104,2.90386,3443.7,3443.0,0.55]
[1721298663105,2.90403,3443.5,3443.0,0.55]
[1721298663301,2.90403,3443.5,3443.2,0.04564232]
[1721298663539,2.90403,3443.5,3443.0,0.55]
[1721298663721,2.90403,3443.5,3443.3,0.04563749]
[1721298663922,2.90403,3443.5,3443.0,0.55]
[1721298664205,2.90403,3443.5,3443.4,0.04563266]
[1721298664406,2.90403,3443.5,3443.0,0.55]
[1721298664628,2.90403,3443.5,3443.4,0.04563266]
[1721298664808,2.90403,3443.5,3443.0,0.55]
[1721298665007,2.90403,3443.5,3443.4,0.04563266]
[1721298665507,2.90403,3443.5,3443.0,1.135331]
[1721298666059,2.90419,3443.3,3443.1,0.04564715]
[1721298666566,2.90403,3443.5,3443.1,0.04564715]
[1721298667372,2.90395,3443.6,3443.1,0.04564715]
[1721298667539,2.90395,3443.6,3443.2,0.56278425]
[1721298667738,2.90395,3443.6,3443.3,0.55]
[1721298667938,2.90395,3443.6,3443.3,0.59563749]
[1721298668651,2.90403,3443.5,3443.3,0.59563749]
[1721298669166,2.90403,3443.5,3443.3,0.04563749]
[1721298669361,2.90403,3443.5,3443.0,0.55]
[1721298669551,2.90403,3443.5,3443.4,0.04554151]
[1721298669775,2.90403,3443.5,3443.2,0.55]
[1721298670154,2.90403,3443.5,3443.3,0.04554634]
[1721298670469,2.90403,3443.5,3443.2,0.55]
[1721298670660,2.90403,3443.5,3443.4,0.04554151]
[1721298670834,2.90403,3443.5,3443.3,0.04554634]
[1721298671033,2.90403,3443.5,3443.4,0.04554151]
[1721298671631,2.90403,3443.5,3443.2,0.55]
[1721298671832,2.90403,3443.5,3443.4,0.04554151]
[1721298672088,2.90403,3443.5,3443.3,0.04554634]
[1721298672571,2.90403,3443.5,3443.4,0.04554151]
[1721298672731,2.90403,3443.5,3443.2,1.11278325]
[1721298672931,2.90403,3443.5,3443.4,0.04554151]
[1721298673163,2.90403,3443.5,3443.2,0.55]
[1721298673332,2.90403,3443.5,3443.4,0.04554151]
[1721298673651,2.90403,3443.5,3443.0,0.55]
[1721298673857,2.90403,3443.5,3443.4,0.04554151]
[1721298674045,2.90403,3443.5,3443.0,0.55]
[1721298674242,2.90403,3443.5,3443.4,0.04554151]
[1721298674442,2.90403,3443.5,3443.0,0.55]
[1721298674643,5.8081,3443.5,3443.4,0.04554151]
[1721298674951,2.90425,3443.3,3443.0,0.55]
[1721298675251,5.80851,3443.3,3442.7,0.55]
[1721298675455,5.80851,3443.3,3442.8,0.584612]
[1721298675658,2.90429,3443.2,3442.9,0.55]
[1721298678571,2.90429,3443.2,3443.0,0.04559628]
[1721298680341,3.2071752,3443.4,3443.0,0.04559628]
[1721298681377,2.90423,3443.3,3443.0,0.04559628]
[1721298681557,2.90428,3443.2,3443.0,0.04559628]
[1721298689981,2.90428,3443.2,3443.0,0.59559628]
[1721298690180,2.90428,3443.2,3443.0,0.04559628]
[1721298690356,2.90428,3443.2,3442.7,0.55]
[1721298690564,2.90428,3443.2,3443.1,0.04564715]
[1721298690754,2.90428,3443.2,3442.9,0.55]
[1721298690952,2.90428,3443.2,3443.1,0.04564715]
[1721298691186,2.90428,3443.2,3442.9,0.55]
[1721298691397,2.90428,3443.2,3443.1,0.04564715]
[1721298691694,3.2071752,3443.4,3442.9,0.55]
[1721298691853,3.2071752,3443.4,3443.1,0.04564715]
[1721298692054,3.2071752,3443.4,3443.1,0.55]
[1721298692253,6.1113452,3443.4,3443.2,0.04564485]
[1721298692453,6.1113452,3443.4,3443.2,0.59564485]
[1721298692665,2.90419,3443.3,3443.2,0.59564485]
[1721298693254,2.90419,3443.3,3443.2,0.04564485]
[1721298693916,0.3030552,3443.4,3443.2,2.49344485]
[1721298694070,0.3030552,3443.4,3443.3,1.18518005]
[1721298694399,0.3030552,3443.4,3443.3,2.05781247]
[1721298694905,0.3030552,3443.4,3443.3,1.23081247]
[1721298695892,0.3030552,3443.4,3443.3,0.59563242]
[1721298696195,0.3030552,3443.4,3443.3,0.04563242]
[1721298696381,0.3030552,3443.4,3443.0,0.55]
[1721298696589,0.3030552,3443.4,3443.3,0.04560963]
[1721298696755,0.3030552,3443.4,3443.0,0.55]
[1721298696962,0.3030552,3443.4,3443.1,0.72033976]
[1721298697187,0.3030552,3443.4,3443.2,0.55]
[1721298697404,0.3030552,3443.4,3443.3,0.0456071]
[1721298697902,0.3030552,3443.4,3443.2,0.55]
[1721298698107,0.3030552,3443.4,3443.3,0.0456071]
[1721298698395,2.90419,3443.3,3443.2,0.55]
[1721298698601,2.90419,3443.3,3443.2,0.04563725]
[1721298698756,3.2071752,3443.4,3443.0,0.55]
[1721298698955,2.90419,3443.3,3443.1,0.04564208]
[1721298699398,3.2071552,3443.4,3443.1,0.04564208]
[1721298699833,3.2071552,3443.4,3443.1,0.87264208]
[1721298699995,3.2071552,3443.4,3443.2,0.55]
[1721298700358,3.2071552,3443.4,3443.3,0.04563242]
[1721298700666,3.2071552,3443.4,3443.2,0.55]
[1721298700973,3.2071552,3443.4,3443.3,0.04563242]
[1721298701203,3.2071552,3443.4,3443.2,0.55]
[1721298701383,3.2071552,3443.4,3443.3,0.04563242]
[1721298701576,3.2071552,3443.4,3443.0,0.55]
[1721298701779,3.2071552,3443.4,3443.1,0.04564208]
[1721298702099,0.3030552,3443.4,3443.1,3.62516529]